[Event "Early-Titled-Tuesday-Blitz-February-20-2024"]
[Site "Chess.com"]
[Date "2024.02.20"]
[Round "5"]
[White "chessdjw"]
[Black "Hikaru"]
[Result "0-1"]
[WhiteElo "2752"]
[BlackElo "3267"]
[TimeControl "180+1"]
[EndTime "8:55:45 PST"]
[Termination "Hikaru won on time"]

1. d4 {[%clk 0:03:00.9]} 1... g6 {[%clk 0:02:59.8]} 2. c4 {[%clk 0:03:00]} 2...
Bg7 {[%clk 0:02:59.2]} 3. e4 {[%clk 0:02:59.5]} 3... d6 {[%clk 0:02:58.9]} 4.
Nc3 {[%clk 0:02:59.9]} 4... Nd7 {[%clk 0:02:59.1]} 5. Nf3 {[%clk 0:02:59.6]}
5... c5 {[%clk 0:02:59.6]} 6. d5 {[%clk 0:02:57.1]} 6... a6 {[%clk 0:02:59.3]}
7. a4 {[%clk 0:02:56.6]} 7... Ngf6 {[%clk 0:02:59.6]} 8. Bd3 {[%clk 0:02:53.4]}
8... e5 {[%clk 0:02:56.1]} 9. h3 {[%clk 0:02:51.5]} 9... Nh5 {[%clk 0:02:55]}
10. g3 {[%clk 0:02:46.8]} 10... O-O {[%clk 0:02:54.6]} 11. Nh4 {[%clk
0:02:28.3]} 11... Nf4 {[%clk 0:02:40.9]} 12. gxf4 {[%clk 0:02:10.2]} 12... Qxh4
{[%clk 0:02:40]} 13. f5 {[%clk 0:02:10.9]} 13... Nf6 {[%clk 0:02:28.1]} 14. Qf3
{[%clk 0:01:52]} 14... gxf5 {[%clk 0:02:20.8]} 15. Bd2 {[%clk 0:00:20.2]} 15...
fxe4 {[%clk 0:01:46.4]} 16. Nxe4 {[%clk 0:00:19.4]} 16... Nxe4 {[%clk
0:01:46.8]} 17. Bxe4 {[%clk 0:00:19.4]} 17... f5 {[%clk 0:01:46.8]} 18. Bc2
{[%clk 0:00:16.4]} 18... Qxc4 {[%clk 0:01:40.2]} 19. O-O-O {[%clk 0:00:16.8]}
19... f4 {[%clk 0:01:13.6]} 20. Kb1 {[%clk 0:00:16.6]} 20... Bf5 {[%clk
0:01:06.6]} 21. Bxf5 {[%clk 0:00:16.3]} 21... Rxf5 {[%clk 0:01:07.5]} 22. Rhg1
{[%clk 0:00:13.3]} 22... Rf7 {[%clk 0:00:59.5]} 23. Rde1 {[%clk 0:00:11.1]}
23... Qxa4 {[%clk 0:00:56.4]} 24. Bc3 {[%clk 0:00:09.3]} 24... Qd7 {[%clk
0:00:55.8]} 25. Rg5 {[%clk 0:00:07.5]} 25... h6 {[%clk 0:00:52.7]} 26. Rh5
{[%clk 0:00:02.9]} 26... Rf6 {[%clk 0:00:41.4]} 27. Rg1 {[%clk 0:00:03.2]} 27...
Qf7 {[%clk 0:00:41.7]} 28. Ka1 {[%clk 0:00:02.2]} 28... Rg6 {[%clk 0:00:41.5]}
29. Rg4 {[%clk 0:00:01.6]} 29... Rxg4 {[%clk 0:00:38.3]} 30. hxg4 {[%clk
0:00:02.5]} 30... Qg6 {[%clk 0:00:38.5]} 31. Qh3 {[%clk 0:00:02.3]} 31... b5
{[%clk 0:00:35.9]} 32. f3 {[%clk 0:00:02.4]} 32... b4 {[%clk 0:00:36.4]} 33. Be1
{[%clk 0:00:01.5]} 33... e4 {[%clk 0:00:37]} 34. g5 {[%clk 0:00:01.4]} 34...
hxg5 {[%clk 0:00:35.7]} 35. Qg4 {[%clk 0:00:01.9]} 35... Qf6 {[%clk 0:00:32.9]}
0-1

[Event "Early-Titled-Tuesday-Blitz-February-20-2024"]
[Site "Chess.com"]
[Date "2024.02.20"]
[Round "5"]
[White "Chess4always"]
[Black "cukin84"]
[Result "1-0"]
[WhiteElo "1990"]
[BlackElo "2210"]
[TimeControl "180+1"]
[EndTime "8:55:45 PST"]
[Termination "Chess4always won by checkmate"]

1. d4 {[%clk 0:03:00.9]} 1... f5 {[%clk 0:02:59.3]} 2. Bg5 {[%clk 0:03:00.1]}
2... h6 {[%clk 0:02:58.9]} 3. Bc1 {[%clk 0:03:00.6]} 3... g5 {[%clk 0:02:58.7]}
4. h4 {[%clk 0:03:00.9]} 4... g4 {[%clk 0:02:58.5]} 5. g3 {[%clk 0:03:01.3]}
5... Nf6 {[%clk 0:02:58.2]} 6. Bg2 {[%clk 0:03:01.6]} 6... Bg7 {[%clk
0:02:57.6]} 7. e3 {[%clk 0:03:02.2]} 7... O-O {[%clk 0:02:57.2]} 8. c4 {[%clk
0:03:02.7]} 8... d6 {[%clk 0:02:56.9]} 9. Nc3 {[%clk 0:03:03.2]} 9... c6 {[%clk
0:02:56.7]} 10. Qb3 {[%clk 0:03:02.4]} 10... Kh8 {[%clk 0:02:54.7]} 11. Nge2
{[%clk 0:03:02.6]} 11... Nh5 {[%clk 0:02:51]} 12. d5 {[%clk 0:02:52]} 12... c5
{[%clk 0:02:49.3]} 13. Qc2 {[%clk 0:02:51.2]} 13... Na6 {[%clk 0:02:47.8]} 14.
a3 {[%clk 0:02:51.1]} 14... Rb8 {[%clk 0:02:41]} 15. Nf4 {[%clk 0:02:50.1]}
15... Nxf4 {[%clk 0:02:39.1]} 16. exf4 {[%clk 0:02:51]} 16... e5 {[%clk
0:02:32]} 17. dxe6 {[%clk 0:02:46.2]} 17... Bxe6 {[%clk 0:02:31.2]} 18. Nd5
{[%clk 0:02:37.3]} 18... b5 {[%clk 0:02:25.4]} 19. O-O {[%clk 0:02:35.4]} 19...
bxc4 {[%clk 0:02:25]} 20. Bd2 {[%clk 0:02:30]} 20... Rxb2 {[%clk 0:02:21]} 21.
Qc1 {[%clk 0:02:21]} 21... Rb3 {[%clk 0:02:12.7]} 22. Rb1 {[%clk 0:02:13.4]}
22... Rd3 {[%clk 0:02:11.2]} 23. Ne3 {[%clk 0:02:08.2]} 23... c3 {[%clk
0:02:00.5]} 24. Be1 {[%clk 0:02:04.1]} 24... d5 {[%clk 0:01:58.5]} 25. Qc2
{[%clk 0:02:00.6]} 25... c4 {[%clk 0:01:55.8]} 26. Rb7 {[%clk 0:01:53.2]} 26...
d4 {[%clk 0:01:53.9]} 27. Nd1 {[%clk 0:01:36.5]} 27... Nc5 {[%clk 0:01:53.1]}
28. Rxg7 {[%clk 0:01:34.9]} 28... Kxg7 {[%clk 0:01:52.5]} 29. Nxc3 {[%clk
0:01:30.1]} 29... dxc3 {[%clk 0:01:49.1]} 30. Bxc3+ {[%clk 0:01:31]} 30... Kh7
{[%clk 0:01:46.7]} 31. Re1 {[%clk 0:01:22.3]} 31... Bd5 {[%clk 0:01:24.5]} 32.
Bf1 {[%clk 0:01:21.5]} 32... Be4 {[%clk 0:01:19.7]} 33. Bxd3 {[%clk 0:01:03.9]}
33... Bxd3 {[%clk 0:01:19.7]} 34. Qc1 {[%clk 0:00:59]} 34... Ne4 {[%clk
0:01:19.3]} 35. Ba1 {[%clk 0:00:55.5]} 35... Qb6 {[%clk 0:01:17]} 36. Rxe4
{[%clk 0:00:53.1]} 36... fxe4 {[%clk 0:01:05.3]} 37. Qc3 {[%clk 0:00:53.6]}
37... Qc7 {[%clk 0:00:47.9]} 38. h5 {[%clk 0:00:53.5]} 38... Qf7 {[%clk
0:00:38.4]} 39. Qe5 {[%clk 0:00:47.3]} 39... a6 {[%clk 0:00:26.2]} 40. Bc3
{[%clk 0:00:46.9]} 40... Re8 {[%clk 0:00:21.2]} 41. Qd6 {[%clk 0:00:45.5]} 41...
Qxh5 {[%clk 0:00:15.2]} 42. Qd7+ {[%clk 0:00:43]} 42... Kg6 {[%clk 0:00:10.4]}
43. Qg7+ {[%clk 0:00:39]} 43... Kf5 {[%clk 0:00:10.5]} 44. Qf6# {[%clk
0:00:39.5]} 1-0

[Event "Early-Titled-Tuesday-Blitz-February-20-2024"]
[Site "Chess.com"]
[Date "2024.02.20"]
[Round "5"]
[White "Arystanner"]
[Black "komogro"]
[Result "1-0"]
[WhiteElo "2766"]
[BlackElo "2523"]
[TimeControl "180+1"]
[EndTime "8:55:46 PST"]
[Termination "Arystanner won on time"]

1. d4 {[%clk 0:02:55.5]} 1... Nf6 {[%clk 0:02:57.7]} 2. c4 {[%clk 0:02:55.8]}
2... g6 {[%clk 0:02:56.5]} 3. Nc3 {[%clk 0:02:56.5]} 3... Bg7 {[%clk 0:02:57]}
4. e4 {[%clk 0:02:56.9]} 4... d6 {[%clk 0:02:57.6]} 5. Be2 {[%clk 0:02:57.5]}
5... O-O {[%clk 0:02:57.6]} 6. h4 {[%clk 0:02:58.1]} 6... c5 {[%clk 0:02:56.3]}
7. d5 {[%clk 0:02:58.5]} 7... b5 {[%clk 0:02:56.1]} 8. cxb5 {[%clk 0:02:58.3]}
8... a6 {[%clk 0:02:56.2]} 9. a4 {[%clk 0:02:56]} 9... axb5 {[%clk 0:02:54.4]}
10. Bxb5 {[%clk 0:02:56.2]} 10... Ba6 {[%clk 0:02:54.2]} 11. Bd2 {[%clk
0:02:55.6]} 11... Qa5 {[%clk 0:02:39.2]} 12. Nf3 {[%clk 0:02:43.8]} 12... c4
{[%clk 0:02:26.7]} 13. O-O {[%clk 0:02:41.1]} 13... Nbd7 {[%clk 0:02:24.5]} 14.
Nd4 {[%clk 0:02:40.4]} 14... Nc5 {[%clk 0:02:21.5]} 15. Nc6 {[%clk 0:02:37.5]}
15... Qc7 {[%clk 0:02:21.2]} 16. Qc2 {[%clk 0:02:29.6]} 16... Ng4 {[%clk
0:01:56]} 17. Rad1 {[%clk 0:02:21.4]} 17... Ne5 {[%clk 0:01:53.8]} 18. Nxe5
{[%clk 0:02:17.9]} 18... Bxe5 {[%clk 0:01:54.7]} 19. h5 {[%clk 0:02:15.6]} 19...
Rfc8 {[%clk 0:01:39.4]} 20. Be3 {[%clk 0:02:14.6]} 20... Nd3 {[%clk 0:01:32.5]}
21. Qe2 {[%clk 0:02:07.6]} 21... Qa5 {[%clk 0:01:27.3]} 22. Bc6 {[%clk
0:01:58.1]} 22... Rab8 {[%clk 0:01:03.3]} 23. Nb5 {[%clk 0:01:58.5]} 23... Nxb2
{[%clk 0:00:54.7]} 24. f4 {[%clk 0:01:38.2]} 24... Nxd1 {[%clk 0:00:46.9]} 25.
Rxd1 {[%clk 0:01:38.9]} 25... Bg7 {[%clk 0:00:43.5]} 26. Qxc4 {[%clk 0:01:33.8]}
26... Bxb5 {[%clk 0:00:37.6]} 27. axb5 {[%clk 0:01:33.6]} 27... Ra8 {[%clk
0:00:20.3]} 28. b6 {[%clk 0:01:22.2]} 28... Rab8 {[%clk 0:00:19.3]} 29. Qb5
{[%clk 0:01:17.2]} 29... Qc3 {[%clk 0:00:14]} 30. Bf2 {[%clk 0:01:16.6]} 30...
Qc2 {[%clk 0:00:10.6]} 31. Qd3 {[%clk 0:01:10.9]} 31... Qb2 {[%clk 0:00:07.5]}
32. Rb1 {[%clk 0:01:07.2]} 32... Qa2 {[%clk 0:00:06.7]} 33. b7 {[%clk
0:01:06.1]} 33... Rd8 {[%clk 0:00:06.2]} 34. hxg6 {[%clk 0:01:05.4]} 34... hxg6
{[%clk 0:00:05.8]} 35. Bb6 {[%clk 0:01:03.5]} 35... Rf8 {[%clk 0:00:05]} 36. Bc7
{[%clk 0:01:02.1]} 36... Bf6 {[%clk 0:00:03.8]} 37. e5 {[%clk 0:00:59.5]} 37...
dxe5 {[%clk 0:00:03.6]} 38. fxe5 {[%clk 0:01:00.4]} 38... Bg5 {[%clk 0:00:03]}
39. e6 {[%clk 0:00:59.6]} 39... f5 {[%clk 0:00:02.3]} 40. Kh2 {[%clk 0:00:55.7]}
40... Qf2 {[%clk 0:00:01]} 41. Qg3 {[%clk 0:00:51.8]} 1-0

[Event "Early-Titled-Tuesday-Blitz-February-20-2024"]
[Site "Chess.com"]
[Date "2024.02.20"]
[Round "5"]
[White "AmanteDeMoi"]
[Black "RobertoJBM"]
[Result "0-1"]
[WhiteElo "2613"]
[BlackElo "2829"]
[TimeControl "180+1"]
[EndTime "8:55:47 PST"]
[Termination "RobertoJBM won on time"]

1. Nf3 {[%clk 0:02:55.2]} 1... d5 {[%clk 0:02:59.7]} 2. e3 {[%clk 0:02:54.4]}
2... Nf6 {[%clk 0:02:59.1]} 3. c4 {[%clk 0:02:53.7]} 3... c6 {[%clk 0:02:56.9]}
4. b3 {[%clk 0:02:53.6]} 4... Bg4 {[%clk 0:02:56.1]} 5. Bb2 {[%clk 0:02:53.8]}
5... e6 {[%clk 0:02:54.4]} 6. Be2 {[%clk 0:02:53.3]} 6... Nbd7 {[%clk
0:02:53.1]} 7. O-O {[%clk 0:02:53.7]} 7... Bd6 {[%clk 0:02:52.1]} 8. d3 {[%clk
0:02:53]} 8... O-O {[%clk 0:02:51.8]} 9. Nbd2 {[%clk 0:02:52.2]} 9... Qe7 {[%clk
0:02:51.9]} 10. Qc2 {[%clk 0:02:51.1]} 10... e5 {[%clk 0:02:51.2]} 11. cxd5
{[%clk 0:02:49.5]} 11... cxd5 {[%clk 0:02:51.1]} 12. Rac1 {[%clk 0:02:50]} 12...
a6 {[%clk 0:02:49.5]} 13. h3 {[%clk 0:02:40.8]} 13... Bh5 {[%clk 0:02:44.2]} 14.
Rfe1 {[%clk 0:02:32.5]} 14... Rfe8 {[%clk 0:02:43.3]} 15. e4 {[%clk 0:02:32.3]}
15... d4 {[%clk 0:02:43]} 16. Nh4 {[%clk 0:02:18.4]} 16... Bg6 {[%clk
0:02:40.1]} 17. a4 {[%clk 0:02:06.3]} 17... Bb4 {[%clk 0:02:34.1]} 18. Rf1
{[%clk 0:01:57.9]} 18... Nc5 {[%clk 0:02:11.7]} 19. Nc4 {[%clk 0:01:22.2]} 19...
Nfd7 {[%clk 0:02:05]} 20. Nxg6 {[%clk 0:01:19.6]} 20... hxg6 {[%clk 0:02:05.9]}
21. f4 {[%clk 0:01:11.3]} 21... Rad8 {[%clk 0:02:03.6]} 22. a5 {[%clk
0:00:54.7]} 22... f6 {[%clk 0:01:49.3]} 23. Bg4 {[%clk 0:00:50.4]} 23... Kh7
{[%clk 0:01:46.8]} 24. Bxd7 {[%clk 0:00:46.7]} 24... Rxd7 {[%clk 0:01:44.3]} 25.
Nb6 {[%clk 0:00:44.8]} 25... Bxa5 {[%clk 0:01:34.6]} 26. Nxd7 {[%clk 0:00:30.7]}
26... Nxd7 {[%clk 0:01:35.5]} 27. f5 {[%clk 0:00:27.6]} 27... gxf5 {[%clk
0:01:28.2]} 28. Rxf5 {[%clk 0:00:25.7]} 28... Nf8 {[%clk 0:01:23.4]} 29. Qc5
{[%clk 0:00:13.9]} 29... Bb4 {[%clk 0:01:08.8]} 30. Qxe7 {[%clk 0:00:13.1]}
30... Rxe7 {[%clk 0:01:09.7]} 31. Rc4 {[%clk 0:00:08.9]} 31... a5 {[%clk
0:01:05.5]} 32. Rf1 {[%clk 0:00:07.5]} 32... Ne6 {[%clk 0:01:05.6]} 33. g3
{[%clk 0:00:06.1]} 33... Nc5 {[%clk 0:01:05.3]} 34. Rf3 {[%clk 0:00:03.5]} 34...
Nxb3 {[%clk 0:01:04.9]} 35. Rc8 {[%clk 0:00:03.5]} 35... b5 {[%clk 0:00:52.2]}
36. Rf1 {[%clk 0:00:03.1]} 36... Nc5 {[%clk 0:00:50.1]} 37. Rd1 {[%clk
0:00:02.6]} 37... Na4 {[%clk 0:00:48.4]} 38. Bc1 {[%clk 0:00:02.1]} 38... Rb7
{[%clk 0:00:47.3]} 0-1

[Event "Early-Titled-Tuesday-Blitz-February-20-2024"]
[Site "Chess.com"]
[Date "2024.02.20"]
[Round "5"]
[White "ImportedItalianMaple"]
[Black "yuriydovzik"]
[Result "1-0"]
[WhiteElo "2531"]
[BlackElo "2148"]
[TimeControl "180+1"]
[EndTime "8:55:47 PST"]
[Termination "ImportedItalianMaple won on time"]

1. Nf3 {[%clk 0:02:54.8]} 1... b6 {[%clk 0:02:54.8]} 2. e4 {[%clk 0:02:52.4]}
2... Bb7 {[%clk 0:02:54]} 3. Nc3 {[%clk 0:02:52.5]} 3... e6 {[%clk 0:02:50.8]}
4. a3 {[%clk 0:02:45.8]} 4... a6 {[%clk 0:02:44.8]} 5. d4 {[%clk 0:02:45.2]}
5... d6 {[%clk 0:02:38]} 6. Bf4 {[%clk 0:02:40.9]} 6... Nd7 {[%clk 0:02:35.2]}
7. Bd3 {[%clk 0:02:38]} 7... Ngf6 {[%clk 0:02:30]} 8. e5 {[%clk 0:02:33.5]} 8...
Nd5 {[%clk 0:02:14.6]} 9. Nxd5 {[%clk 0:02:33.2]} 9... Bxd5 {[%clk 0:02:13.7]}
10. O-O {[%clk 0:02:29.1]} 10... dxe5 {[%clk 0:02:07.2]} 11. Nxe5 {[%clk
0:02:23.1]} 11... Nxe5 {[%clk 0:02:00.1]} 12. Bxe5 {[%clk 0:02:21.9]} 12... Bd6
{[%clk 0:01:50.8]} 13. Qh5 {[%clk 0:02:08.9]} 13... g6 {[%clk 0:01:37.7]} 14.
Qh6 {[%clk 0:01:56.4]} 14... Bxe5 {[%clk 0:01:13.7]} 15. dxe5 {[%clk 0:01:57.3]}
15... Qe7 {[%clk 0:00:55.2]} 16. Rad1 {[%clk 0:01:54]} 16... Qf8 {[%clk
0:00:45.3]} 17. Qf4 {[%clk 0:01:41.6]} 17... Qe7 {[%clk 0:00:33.8]} 18. Qa4+
{[%clk 0:01:16.1]} 18... b5 {[%clk 0:00:30.2]} 19. Qf4 {[%clk 0:01:05.5]} 19...
O-O {[%clk 0:00:28.7]} 20. h4 {[%clk 0:01:05.6]} 20... f6 {[%clk 0:00:24.2]} 21.
h5 {[%clk 0:01:01.6]} 21... fxe5 {[%clk 0:00:16]} 22. Qxe5 {[%clk 0:01:02.5]}
22... Qg7 {[%clk 0:00:14.2]} 23. Qxg7+ {[%clk 0:00:46.4]} 23... Kxg7 {[%clk
0:00:13.8]} 24. hxg6 {[%clk 0:00:47.3]} 24... hxg6 {[%clk 0:00:13.4]} 25. Rfe1
{[%clk 0:00:47.7]} 25... Kf6 {[%clk 0:00:13.3]} 26. f4 {[%clk 0:00:40.9]} 26...
g5 {[%clk 0:00:10.8]} 27. fxg5+ {[%clk 0:00:34.9]} 27... Kxg5 {[%clk 0:00:10.6]}
28. Re5+ {[%clk 0:00:35.2]} 28... Kf6 {[%clk 0:00:10.5]} 29. Rde1 {[%clk
0:00:33.8]} 29... Rg8 {[%clk 0:00:09.8]} 30. R5e2 {[%clk 0:00:32.7]} 30... Ke7
{[%clk 0:00:08.3]} 31. Be4 {[%clk 0:00:30.5]} 31... Bxe4 {[%clk 0:00:04]} 32.
Rxe4 {[%clk 0:00:31.4]} 32... Rg6 {[%clk 0:00:04]} 33. Rh4 {[%clk 0:00:32.1]}
33... Rag8 {[%clk 0:00:03]} 34. Re2 {[%clk 0:00:32.9]} 34... R8g7 {[%clk
0:00:02.5]} 35. c4 {[%clk 0:00:32.5]} 35... Kd6 {[%clk 0:00:01.2]} 36. cxb5
{[%clk 0:00:33]} 1-0

[Event "Early-Titled-Tuesday-Blitz-February-20-2024"]
[Site "Chess.com"]
[Date "2024.02.20"]
[Round "5"]
[White "waspofborneo"]
[Black "atalz0"]
[Result "1-0"]
[WhiteElo "2249"]
[BlackElo "2396"]
[TimeControl "180+1"]
[EndTime "8:55:50 PST"]
[Termination "waspofborneo won on time"]

1. e4 {[%clk 0:03:00.9]} 1... d5 {[%clk 0:02:59.5]} 2. exd5 {[%clk 0:03:00.3]}
2... Nf6 {[%clk 0:03:00.1]} 3. Nf3 {[%clk 0:02:58.7]} 3... Nxd5 {[%clk
0:03:00.4]} 4. g3 {[%clk 0:02:58.8]} 4... Bg4 {[%clk 0:02:59.7]} 5. Bg2 {[%clk
0:02:58.8]} 5... Nc6 {[%clk 0:03:00.4]} 6. d4 {[%clk 0:02:50.1]} 6... e6 {[%clk
0:02:58]} 7. O-O {[%clk 0:02:47]} 7... Be7 {[%clk 0:02:56.9]} 8. h3 {[%clk
0:02:23.1]} 8... Bh5 {[%clk 0:02:56.4]} 9. g4 {[%clk 0:02:21.5]} 9... Bg6 {[%clk
0:02:55.8]} 10. a3 {[%clk 0:02:19.2]} 10... h5 {[%clk 0:02:50]} 11. c4 {[%clk
0:02:13.7]} 11... hxg4 {[%clk 0:02:43.2]} 12. hxg4 {[%clk 0:02:02.8]} 12... Nf6
{[%clk 0:02:43]} 13. g5 {[%clk 0:01:55.5]} 13... Ne4 {[%clk 0:02:39]} 14. d5
{[%clk 0:01:46.3]} 14... Na5 {[%clk 0:02:06.5]} 15. Qa4+ {[%clk 0:01:44.6]}
15... c6 {[%clk 0:02:06.4]} 16. Nc3 {[%clk 0:01:28.8]} 16... Nxc3 {[%clk
0:01:38.2]} 17. bxc3 {[%clk 0:01:27.7]} 17... exd5 {[%clk 0:01:31.7]} 18. cxd5
{[%clk 0:01:11]} 18... Qxd5 {[%clk 0:01:22.6]} 19. Re1 {[%clk 0:01:10.1]} 19...
Kf8 {[%clk 0:01:14.7]} 20. Ne5 {[%clk 0:01:09.5]} 20... Qb5 {[%clk 0:01:03.4]}
21. Qf4 {[%clk 0:00:58.8]} 21... Kg8 {[%clk 0:00:15.9]} 22. Nxg6 {[%clk
0:00:58.5]} 22... fxg6 {[%clk 0:00:15]} 23. Rxe7 {[%clk 0:00:58.4]} 23... Rf8
{[%clk 0:00:13.6]} 24. Qe5 {[%clk 0:00:55.9]} 24... Qxe5 {[%clk 0:00:12.9]} 25.
Rxe5 {[%clk 0:00:55.7]} 25... Nc4 {[%clk 0:00:10.3]} 26. Re7 {[%clk 0:00:55.6]}
26... Rf7 {[%clk 0:00:08.1]} 27. Re8+ {[%clk 0:00:50.4]} 27... Kh7 {[%clk
0:00:07.8]} 28. Rxh8+ {[%clk 0:00:49.6]} 28... Kxh8 {[%clk 0:00:08.7]} 29. Bf1
{[%clk 0:00:47.5]} 29... Ne5 {[%clk 0:00:07.7]} 30. Rb1 {[%clk 0:00:46.9]} 30...
Nf3+ {[%clk 0:00:06.8]} 31. Kg2 {[%clk 0:00:45.1]} 31... b6 {[%clk 0:00:06.6]}
32. Be3 {[%clk 0:00:44.9]} 32... Nh4+ {[%clk 0:00:05.4]} 33. Kg3 {[%clk
0:00:44]} 33... Nf5+ {[%clk 0:00:05.6]} 34. Kg2 {[%clk 0:00:43.7]} 34... Nxe3+
{[%clk 0:00:04.9]} 35. fxe3 {[%clk 0:00:43.7]} 35... Rf5 {[%clk 0:00:05.6]} 36.
Bd3 {[%clk 0:00:42.9]} 36... Rxg5+ {[%clk 0:00:05.9]} 37. Kf3 {[%clk 0:00:43.2]}
37... Ra5 {[%clk 0:00:05.2]} 38. Bc4 {[%clk 0:00:43.1]} 1-0

[Event "Early-Titled-Tuesday-Blitz-February-20-2024"]
[Site "Chess.com"]
[Date "2024.02.20"]
[Round "5"]
[White "carokannlover213"]
[Black "HATilay"]
[Result "1-0"]
[WhiteElo "2856"]
[BlackElo "2635"]
[TimeControl "180+1"]
[EndTime "8:55:52 PST"]
[Termination "carokannlover213 won on time"]

1. e4 {[%clk 0:02:56.5]} 1... c5 {[%clk 0:02:59.9]} 2. Nf3 {[%clk 0:02:56.7]}
2... d6 {[%clk 0:03:00.3]} 3. Bb5+ {[%clk 0:02:57.1]} 3... Nd7 {[%clk
0:03:00.2]} 4. O-O {[%clk 0:02:56.9]} 4... a6 {[%clk 0:03:00.5]} 5. Be2 {[%clk
0:02:57.5]} 5... Ngf6 {[%clk 0:02:59.6]} 6. d3 {[%clk 0:02:58.2]} 6... e6 {[%clk
0:02:59.3]} 7. a4 {[%clk 0:02:58.6]} 7... Be7 {[%clk 0:02:59.6]} 8. Na3 {[%clk
0:02:58]} 8... b6 {[%clk 0:02:59.8]} 9. Bf4 {[%clk 0:02:58.2]} 9... O-O {[%clk
0:02:51.9]} 10. Nc4 {[%clk 0:02:58.6]} 10... d5 {[%clk 0:01:55]} 11. exd5 {[%clk
0:02:32.4]} 11... Nxd5 {[%clk 0:01:52]} 12. Bg3 {[%clk 0:02:31.7]} 12... Bb7
{[%clk 0:01:44.3]} 13. Nd6 {[%clk 0:02:29.6]} 13... Bc6 {[%clk 0:01:44.1]} 14.
c3 {[%clk 0:02:25.7]} 14... f5 {[%clk 0:01:29.4]} 15. c4 {[%clk 0:01:48.4]}
15... Nb4 {[%clk 0:01:27.4]} 16. Qd2 {[%clk 0:01:08.9]} 16... Nf6 {[%clk
0:01:14]} 17. Qe3 {[%clk 0:00:43]} 17... Qd7 {[%clk 0:00:44.2]} 18. Ne5 {[%clk
0:00:37.7]} 18... Qxd6 {[%clk 0:00:44.2]} 19. Nxc6 {[%clk 0:00:25.3]} 19... Qxc6
{[%clk 0:00:42.8]} 20. Bf3 {[%clk 0:00:25.5]} 20... Qd7 {[%clk 0:00:29.9]} 21.
Bxa8 {[%clk 0:00:25.7]} 21... Rxa8 {[%clk 0:00:27.8]} 22. Rad1 {[%clk 0:00:25]}
22... Nc2 {[%clk 0:00:27.1]} 23. Qd2 {[%clk 0:00:23.4]} 23... Nd4 {[%clk
0:00:27.5]} 24. Be5 {[%clk 0:00:21.7]} 24... Ng4 {[%clk 0:00:23.7]} 25. Bxd4
{[%clk 0:00:21.2]} 25... Qxd4 {[%clk 0:00:23.8]} 26. Rfe1 {[%clk 0:00:20.8]}
26... Kf7 {[%clk 0:00:23.7]} 27. h3 {[%clk 0:00:20.7]} 27... Nf6 {[%clk
0:00:22.4]} 28. Re3 {[%clk 0:00:19.9]} 28... Bd6 {[%clk 0:00:21.1]} 29. Qe2
{[%clk 0:00:17.3]} 29... Re8 {[%clk 0:00:20.3]} 30. Re1 {[%clk 0:00:17.8]} 1-0

[Event "Early-Titled-Tuesday-Blitz-February-20-2024"]
[Site "Chess.com"]
[Date "2024.02.20"]
[Round "5"]
[White "Fandorine"]
[Black "mr_gustavo"]
[Result "1-0"]
[WhiteElo "2971"]
[BlackElo "2741"]
[TimeControl "180+1"]
[EndTime "8:55:53 PST"]
[Termination "Fandorine won by checkmate"]

1. d4 {[%clk 0:02:57.7]} 1... Nf6 {[%clk 0:02:59.7]} 2. c4 {[%clk 0:02:57.6]}
2... e6 {[%clk 0:02:59.1]} 3. Nc3 {[%clk 0:02:57.6]} 3... Bb4 {[%clk 0:02:58.6]}
4. Qc2 {[%clk 0:02:56.5]} 4... b6 {[%clk 0:02:54.3]} 5. e4 {[%clk 0:02:54.3]}
5... c5 {[%clk 0:02:54.4]} 6. d5 {[%clk 0:02:54.1]} 6... Qe7 {[%clk 0:02:54.5]}
7. Ne2 {[%clk 0:02:51.9]} 7... exd5 {[%clk 0:02:53.4]} 8. exd5 {[%clk
0:02:51.6]} 8... d6 {[%clk 0:02:49.7]} 9. Bd2 {[%clk 0:02:49.9]} 9... O-O {[%clk
0:02:43.5]} 10. O-O-O {[%clk 0:02:48.2]} 10... Nbd7 {[%clk 0:02:35.3]} 11. Ng3
{[%clk 0:02:45.9]} 11... Ng4 {[%clk 0:02:00.9]} 12. Be1 {[%clk 0:02:31.5]} 12...
b5 {[%clk 0:01:54]} 13. h3 {[%clk 0:02:24.8]} 13... Nge5 {[%clk 0:01:53]} 14.
Nxb5 {[%clk 0:02:13.4]} 14... Nb6 {[%clk 0:01:37.3]} 15. f4 {[%clk 0:01:23]}
15... Ng6 {[%clk 0:01:36.5]} 16. Qe4 {[%clk 0:01:10.5]} 16... Qf6 {[%clk
0:01:28.8]} 17. Nh5 {[%clk 0:01:07.1]} 17... Qd8 {[%clk 0:01:22.4]} 18. Bxb4
{[%clk 0:01:07.2]} 18... cxb4 {[%clk 0:01:22.5]} 19. Qd4 {[%clk 0:01:07.9]}
19... f6 {[%clk 0:01:22]} 20. Qf2 {[%clk 0:00:55.1]} 20... Ba6 {[%clk
0:01:13.3]} 21. Nd4 {[%clk 0:00:49.4]} 21... Bxc4 {[%clk 0:01:07.2]} 22. Bxc4
{[%clk 0:00:41.2]} 22... Nxc4 {[%clk 0:01:07.1]} 23. Kb1 {[%clk 0:00:41.1]}
23... Qb6 {[%clk 0:01:03.7]} 24. Qg3 {[%clk 0:00:34.9]} 24... Qb7 {[%clk
0:00:44.2]} 25. Nc6 {[%clk 0:00:21.2]} 25... Rfe8 {[%clk 0:00:41.3]} 26. f5
{[%clk 0:00:20.4]} 26... Re3 {[%clk 0:00:32.2]} 27. Qf2 {[%clk 0:00:10.5]} 27...
Nge5 {[%clk 0:00:18.8]} 28. Rhe1 {[%clk 0:00:10.7]} 28... Rxe1 {[%clk
0:00:14.6]} 29. Qxe1 {[%clk 0:00:10.9]} 29... Nxc6 {[%clk 0:00:09.1]} 30. dxc6
{[%clk 0:00:11.4]} 30... Qxc6 {[%clk 0:00:10]} 31. Qe7 {[%clk 0:00:10.6]} 31...
Kh8 {[%clk 0:00:10.7]} 32. Qxg7# {[%clk 0:00:10.4]} 1-0